fUSD/lending_fUSD_20240224
["ID","MTS","AMOUNT","RATE_DAILY","PERIOD"]
[315024761,1708733483144,-500.0,0.00029178,2]
[315024762,1708733483154,-500.0,0.00029178,2]
[315024763,1708733483164,-500.0,0.00029178,2]
[315024764,1708733483175,-500.0,0.00029178,2]
[315024765,1708733483184,-500.0,0.00029178,2]
[315024766,1708733483193,-500.0,0.00029178,2]
[315024767,1708733483202,-500.0,0.00029178,2]
[315024768,1708733483214,-500.0,0.00029178,2]
[315024769,1708733483224,-500.0,0.00029178,2]
[315024770,1708733483236,-500.0,0.00029178,2]
[315024771,1708733483245,-500.0,0.00029178,2]
[315024772,1708733483254,-268.92006201,0.00029178,2]
[315024773,1708733483264,-544.25,0.00029178,2]
[315024774,1708733483274,-952.3,0.00029178,2]
[315024775,1708733483284,-537.7,0.00029178,2]
[315024776,1708733483293,-529.43,0.00029178,2]
[315024777,1708733483304,-500.0,0.00029178,2]
[315024778,1708733483316,-500.0,0.00029178,2]
[315024779,1708733483326,-532.79,0.00029178,2]
[315024780,1708733483336,-861.64,0.00029178,2]
[315024781,1708733483345,-500.0,0.00029178,2]
[315024782,1708733483355,-5236.95,0.00029178,2]
[315024783,1708733483366,-309.6639794,0.00029178,2]
[315024784,1708733483375,-500.0,0.00029178,2]
[315024785,1708733483384,-974.61,0.00029178,2]
[315024786,1708733483393,-905.57,0.00029178,2]
[315024787,1708733483402,-500.0,0.00029178,2]
[315024788,1708733483411,-500.0,0.00029178,2]
[315024789,1708733483421,-808.71,0.00029178,2]
[315024790,1708733483430,-513.66,0.00029178,2]
[315024791,1708733483439,-583.96,0.00029178,2]
[315024792,1708733483448,-1156.32,0.00029178,2]
[315024793,1708733483461,-681.86,0.00029178,2]
[315024794,1708733483470,-500.0,0.00029178,2]
[315024795,1708733483480,-500.0,0.00029178,2]
[315024796,1708733483490,-698.2,0.00029178,2]
[315024797,1708733483499,-500.0,0.00029178,2]
[315024798,1708733483509,-500.0,0.00029178,2]
[315024799,1708733483519,-500.0,0.00029178,2]
[315024800,1708733483528,-1024.62,0.00029178,2]
[315024801,1708733483538,-212.81,0.00029178,2]
[315024802,1708733483547,-500.0,0.00029178,2]
[315024803,1708733483557,-605.97,0.00029178,2]
[315024804,1708733483566,-1097.31,0.00029178,2]
[315024805,1708733483576,-500.0,0.00029178,2]
[315024806,1708733483585,-1028.01,0.00029178,2]
[315024807,1708733483594,-500.0,0.00029178,2]
[315024808,1708733483603,-864.96,0.00029178,2]
[315024809,1708733483613,-1895.33,0.00029178,2]
[315024810,1708733483622,-500.0,0.00029178,2]
[315024811,1708733483632,-500.0,0.00029178,2]
[315024812,1708733483641,-204.9519271,0.00029178,2]
[315024813,1708733483651,-500.0,0.00029178,2]
[315024814,1708733483661,-1473.06,0.00029178,2]
[315024815,1708733483671,-500.0,0.00029178,2]
[315024816,1708733483681,-1162.77,0.00029178,2]
[315024817,1708733483690,-500.0,0.00029178,2]
[315024818,1708733483701,-500.0,0.00029178,2]
[315024819,1708733483713,-1837.48,0.00029178,2]
[315024820,1708733483723,-2853.27,0.00029178,2]
[315024821,1708733483847,-500.0,0.00029178,2]
[315024822,1708733483858,-572.85,0.00029178,2]
[315024823,1708733483868,-562.36,0.00029178,2]
[315024824,1708733483878,-2847.36,0.00029178,2]
[315024825,1708733483888,-500.0,0.00029178,2]
[315024826,1708733483898,-500.0,0.00029178,2]
[315024827,1708733483908,-4048.98,0.00029178,2]
[315024828,1708733483917,-500.0,0.00029178,2]
[315024829,1708733483928,-500.0,0.00029178,2]
[315024830,1708733483938,-500.0,0.00029178,2]
[315024831,1708733483947,-500.0,0.00029178,2]
[315024832,1708733483957,-167.0,0.00029228,2]
[315024833,1708733483967,-788.04,0.00029315,2]
[315024834,1708733483978,-500.0,0.00029315,2]
[315024835,1708733483986,-500.0,0.00029315,2]
[315024836,1708733483995,-500.0,0.00029315,2]
[315024837,1708733484005,-500.0,0.00029315,2]
[315024838,1708733484014,-500.0,0.00029315,2]
[315024839,1708733484025,-500.0,0.00029315,2]
[315024840,1708733484035,-500.0,0.00029315,2]
[315024841,1708733484044,-237.84,0.00029315,2]
[315024842,1708733484053,-501.01039976,0.00029315,2]
[315024843,1708733484062,-500.0,0.00029315,2]
[315024844,1708733484071,-500.0,0.00029315,2]
[315024845,1708733484080,-544.25,0.00029315,2]
[315024846,1708733484089,-952.3,0.00029315,2]
[315024847,1708733484098,-537.7,0.00029315,2]
[315024848,1708733484107,-529.43,0.00029315,2]
[315024849,1708733484116,-500.0,0.00029315,2]
[315024850,1708733484125,-415.01,0.00029315,2]
[315024851,1708733484134,-532.79,0.00029315,2]
[315024852,1708733484144,-861.64,0.00029315,2]
[315024853,1708733484154,-500.0,0.00029315,2]
[315024854,1708733484163,-5236.95,0.00029315,2]
[315024855,1708733484173,-974.61,0.00029315,2]
[315024856,1708733484182,-905.57,0.00029315,2]
[315024857,1708733484192,-500.0,0.00029315,2]
[315024858,1708733484201,-808.71,0.00029315,2]
[315024859,1708733484214,-513.66,0.00029315,2]
[315024860,1708733484226,-583.96,0.00029315,2]
[315024861,1708733484236,-1156.32,0.00029315,2]
[315024862,1708733484245,-681.86,0.00029315,2]
[315024863,1708733484254,-500.0,0.00029315,2]
[315024864,1708733484264,-500.0,0.00029315,2]
[315024865,1708733484273,-698.2,0.00029315,2]
[315024866,1708733484283,-500.0,0.00029315,2]
[315024867,1708733484292,-308.35481818,0.00029315,2]
[315024868,1708733484302,-500.0,0.00029315,2]
[315024869,1708733484312,-1024.62,0.00029315,2]
[315024870,1708733484322,-500.0,0.00029315,2]
[315024871,1708733484331,-605.97,0.00029315,2]
[315024872,1708733484340,-1097.31,0.00029315,2]
[315024873,1708733484350,-500.0,0.00029315,2]
[315024874,1708733484360,-1028.01,0.00029315,2]
[315024875,1708733484370,-500.0,0.00029315,2]
[315024876,1708733484379,-864.96,0.00029315,2]
[315024877,1708733484388,-1895.33,0.00029315,2]
[315024878,1708733484398,-500.0,0.00029315,2]
[315024879,1708733484408,-500.0,0.00029315,2]
[315024880,1708733484417,-500.0,0.00029315,2]
[315024881,1708733484427,-1473.06,0.00029315,2]
[315024882,1708733484436,-500.0,0.00029315,2]
[315024883,1708733484445,-1162.77,0.00029315,2]
[315024884,1708733484455,-500.0,0.00029315,2]
[315024885,1708733484464,-500.0,0.00029315,2]
[315024886,1708733484474,-1837.48,0.00029315,2]
[315024887,1708733484483,-267.29098394,0.00029315,2]
[315024888,1708733484492,-2853.27,0.00029315,2]
[315024889,1708733484502,-572.85,0.00029315,2]
[315024890,1708733484511,-562.36,0.00029315,2]
[315024891,1708733484521,-2847.36,0.00029315,2]
[315024892,1708733484530,-500.0,0.00029315,2]
[315024893,1708733484539,-4048.98,0.00029315,2]
[315024894,1708733484549,-500.0,0.00029315,2]
[315024895,1708733484558,-500.0,0.00029315,2]
[315024896,1708733484568,-500.0,0.00029315,2]
[315024897,1708733484577,-337.94,0.00029315,2]
[315024898,1708733484586,-5806.98480055,0.00029318,2]
[315024899,1708733484596,-788.04,0.00029452,2]
[315024900,1708733484605,-500.0,0.00029452,2]
[315024901,1708733484615,-500.0,0.00029452,2]
[315024902,1708733484624,-500.0,0.00029452,2]
[315024903,1708733484633,-500.0,0.00029452,2]
[315024904,1708733484643,-500.0,0.00029452,2]
[315024905,1708733484653,-500.0,0.00029452,2]
[315024906,1708733484663,-437.61089818,0.00029452,2]
[315024907,1708733484672,-500.0,0.00029452,2]
[315024908,1708733484682,-544.25,0.00029452,2]
[315024909,1708733484691,-952.3,0.00029452,2]
[315024910,1708733484701,-537.7,0.00029452,2]
[315024911,1708733484713,-529.43,0.00029452,2]
[315024912,1708733484721,-500.0,0.00029452,2]
[315024913,1708733484730,-532.79,0.00029452,2]
[315024914,1708733484740,-861.64,0.00029452,2]
[315024915,1708733484749,-500.0,0.00029452,2]
[315024916,1708733484758,-5236.95,0.00029452,2]
[315024917,1708733484768,-974.61,0.00029452,2]
[315024918,1708733484778,-905.57,0.00029452,2]
[315024919,1708733484788,-500.0,0.00029452,2]
[315024920,1708733484798,-808.71,0.00029452,2]
[315024921,1708733484807,-513.66,0.00029452,2]
[315024922,1708733484816,-583.96,0.00029452,2]
[315024923,1708733484826,-1156.32,0.00029452,2]
[315024924,1708733484835,-681.86,0.00029452,2]
[315024925,1708733484845,-500.0,0.00029452,2]
[315024926,1708733484855,-500.0,0.00029452,2]
[315024927,1708733484865,-698.2,0.00029452,2]
[315024928,1708733484875,-500.0,0.00029452,2]
[315024929,1708733484886,-500.0,0.00029452,2]
[315024930,1708733484895,-1024.62,0.00029452,2]
[315024931,1708733484906,-500.0,0.00029452,2]
[315024932,1708733484916,-605.97,0.00029452,2]
[315024933,1708733484926,-1097.31,0.00029452,2]
[315024934,1708733484936,-500.0,0.00029452,2]
[315024935,1708733484945,-500.0,0.00029452,2]
[315024936,1708733484957,-1028.01,0.00029452,2]
[315024937,1708733484967,-864.96,0.00029452,2]
[315024938,1708733484977,-1895.33,0.00029452,2]
[315024939,1708733484986,-500.0,0.00029452,2]
[315024940,1708733484996,-500.0,0.00029452,2]
[315024941,1708733485006,-500.0,0.00029452,2]
[315024942,1708733485015,-500.0,0.00029452,2]
[315024943,1708733485025,-1473.06,0.00029452,2]
[315024944,1708733485034,-1162.77,0.00029452,2]
[315024945,1708733485044,-500.0,0.00029452,2]
[315024946,1708733485054,-500.0,0.00029452,2]
[315024947,1708733485063,-1837.48,0.00029452,2]
[315024948,1708733485073,-2853.27,0.00029452,2]
[315024949,1708733485082,-572.85,0.00029452,2]
[315024950,1708733485092,-562.36,0.00029452,2]
[315024951,1708733485102,-2847.36,0.00029452,2]
[315024952,1708733485112,-500.0,0.00029452,2]
[315024953,1708733485121,-4048.98,0.00029452,2]
[315024954,1708733485130,-500.0,0.00029452,2]
[315024955,1708733485139,-500.0,0.00029452,2]
[315024956,1708733485148,-337.94,0.00029467,2]
[315024957,1708733485158,-1000.0,0.00029588,2]
[315024958,1708733485167,-788.04,0.00029589,2]
[315024959,1708733485176,-500.0,0.00029589,2]
[315024960,1708733485185,-500.0,0.00029589,2]
[315024961,1708733485194,-500.0,0.00029589,2]
[315024962,1708733485203,-500.0,0.00029589,2]
[315024963,1708733485214,-500.0,0.00029589,2]
[315024964,1708733485224,-572.72,0.00029589,2]
[315024965,1708733485235,-500.0,0.00029589,2]
[315024966,1708733485243,-544.25,0.00029589,2]
[315024967,1708733485253,-952.3,0.00029589,2]
[315024968,1708733485262,-537.7,0.00029589,2]
[315024969,1708733485272,-529.43,0.00029589,2]
[315024970,1708733485281,-500.0,0.00029589,2]
[315024971,1708733485291,-532.79,0.00029589,2]
[315024972,1708733485300,-861.64,0.00029589,2]
[315024973,1708733485309,-500.0,0.00029589,2]
[315024974,1708733485320,-5236.95,0.00029589,2]
[315024975,1708733485329,-974.61,0.00029589,2]
[315024976,1708733485339,-905.57,0.00029589,2]
[315024977,1708733485348,-500.0,0.00029589,2]
[315024978,1708733485357,-808.71,0.00029589,2]
[315024979,1708733485366,-513.66,0.00029589,2]
[315024980,1708733485375,-583.96,0.00029589,2]
[315024981,1708733485384,-1156.32,0.00029589,2]
[315024982,1708733485393,-681.86,0.00029589,2]
[315024983,1708733485402,-500.0,0.00029589,2]
[315024984,1708733485413,-500.0,0.00029589,2]
[315024985,1708733485423,-698.2,0.00029589,2]
[315024986,1708733485433,-500.0,0.00029589,2]
[315024987,1708733485442,-500.0,0.00029589,2]
[315024988,1708733485452,-1024.62,0.00029589,2]
[315024989,1708733485462,-500.0,0.00029589,2]
[315024990,1708733485472,-605.97,0.00029589,2]
[315024991,1708733485481,-1097.31,0.00029589,2]
[315024992,1708733485491,-500.0,0.00029589,2]
[315024993,1708733485500,-500.0,0.00029589,2]
[315024994,1708733485509,-1028.01,0.00029589,2]
[315024995,1708733485520,-864.96,0.00029589,2]
[315024996,1708733485531,-1895.33,0.00029589,2]
[315024997,1708733485541,-500.0,0.00029589,2]
[315024998,1708733485552,-500.0,0.00029589,2]
[315024999,1708733485562,-500.0,0.00029589,2]
[315025000,1708733485571,-286.53622882,0.00029589,2]
[315025001,1708733485580,-1473.06,0.00029589,2]
[315025002,1708733485589,-1162.77,0.00029589,2]
[315025003,1708733485598,-500.0,0.00029589,2]
[315025004,1708733485715,-1837.48,0.00029589,2]
[315025005,1708733485725,-2853.27,0.00029589,2]
[315025006,1708733485735,-572.85,0.00029589,2]
[315025007,1708733485746,-562.36,0.00029589,2]
[315025008,1708733485757,-2847.36,0.00029589,2]
[315025009,1708733485768,-500.0,0.00029589,2]
[315025010,1708733485777,-4048.98,0.00029589,2]
[315025011,1708733485787,-417.12,0.00029589,2]
[315025012,1708733485797,-500.0,0.00029589,2]
[315025013,1708733485807,-337.94,0.00029619,2]
[315025014,1708733485817,-177.74,0.00029678,2]
[315025015,1708733485826,-5576.62,0.00029726,2]
[315025016,1708733485836,-788.04,0.00029726,2]
[315025017,1708733485846,-202.34223371,0.00029726,2]
[315025018,1708733485855,-500.0,0.00029726,2]
[315025019,1708733485865,-500.0,0.00029726,2]
[315025020,1708733485875,-500.0,0.00029726,2]
[315025021,1708733485885,-216.96202189,0.00029726,2]
[315025022,1708733485895,-500.0,0.00029726,2]
[315025023,1708733485905,-544.25,0.00029726,2]
[315025024,1708733485916,-952.3,0.00029726,2]
[315025025,1708733485925,-537.7,0.00029726,2]
[315025026,1708733485935,-529.43,0.00029726,2]
[315025027,1708733485944,-500.0,0.00029726,2]
[315025028,1708733485953,-532.79,0.00029726,2]
[315025029,1708733485965,-861.64,0.00029726,2]
[315025030,1708733485975,-500.0,0.00029726,2]
[315025031,1708733485984,-5236.95,0.00029726,2]
[315025032,1708733485993,-974.61,0.00029726,2]
[315025033,1708733486003,-905.57,0.00029726,2]
[315025034,1708733486012,-500.0,0.00029726,2]
[315025035,1708733486022,-808.71,0.00029726,2]
[315025036,1708733486031,-513.66,0.00029726,2]
[315025037,1708733486041,-583.96,0.00029726,2]
[315025038,1708733486051,-1156.32,0.00029726,2]
[315025039,1708733486060,-681.86,0.00029726,2]
[315025040,1708733486069,-500.0,0.00029726,2]
[315025041,1708733486079,-500.0,0.00029726,2]
[315025042,1708733486088,-698.2,0.00029726,2]
[315025043,1708733486097,-500.0,0.00029726,2]
[315025044,1708733486106,-500.0,0.00029726,2]
[315025045,1708733486116,-1024.62,0.00029726,2]
[315025046,1708733486125,-500.0,0.00029726,2]
[315025047,1708733486135,-605.97,0.00029726,2]
[315025048,1708733486145,-1097.31,0.00029726,2]
[315025049,1708733486154,-500.0,0.00029726,2]
[315025050,1708733486164,-500.0,0.00029726,2]
[315025051,1708733486173,-1028.01,0.00029726,2]
[315025052,1708733486183,-864.96,0.00029726,2]
[315025053,1708733486192,-1895.33,0.00029726,2]
[315025054,1708733486203,-500.0,0.00029726,2]
[315025055,1708733486213,-500.0,0.00029726,2]
[315025056,1708733486223,-500.0,0.00029726,2]
[315025057,1708733486234,-1473.06,0.00029726,2]
[315025058,1708733486244,-1162.77,0.00029726,2]
[315025059,1708733486253,-500.0,0.00029726,2]
[315025060,1708733486262,-1837.48,0.00029726,2]
[315025061,1708733486273,-2853.27,0.00029726,2]
[315025062,1708733486282,-572.85,0.00029726,2]
[315025063,1708733486291,-562.36,0.00029726,2]
[315025064,1708733486302,-2847.36,0.00029726,2]
[315025065,1708733486311,-500.0,0.00029726,2]
[315025066,1708733486320,-4048.98,0.00029726,2]
[315025067,1708733486330,-500.0,0.00029726,2]
[315025068,1708733486339,-337.94,0.00029771,2]
[315025069,1708733486350,-1514.69382229,0.00029806,28]
[315025070,1708733486359,-788.04,0.00029863,2]
[315025071,1708733486368,-500.0,0.00029863,2]
[315025072,1708733486377,-500.0,0.00029863,2]
[315025073,1708733486387,-500.0,0.00029863,2]
[315025074,1708733486396,-544.25,0.00029863,2]
[315025075,1708733486405,-952.3,0.00029863,2]
[315025076,1708733486414,-537.7,0.00029863,2]
[315025077,1708733486423,-529.43,0.00029863,2]
[315025078,1708733486432,-500.0,0.00029863,2]
[315025079,1708733486442,-532.79,0.00029863,2]
[315025080,1708733486451,-861.64,0.00029863,2]
[315025081,1708733486461,-500.0,0.00029863,2]
[315025082,1708733486471,-5236.95,0.00029863,2]
[315025083,1708733486480,-974.61,0.00029863,2]
[315025084,1708733486489,-905.57,0.00029863,2]
[315025085,1708733486498,-500.0,0.00029863,2]
[315025086,1708733486507,-808.71,0.00029863,2]
[315025087,1708733486517,-513.66,0.00029863,2]
[315025088,1708733486528,-583.96,0.00029863,2]
[315025089,1708733486540,-1156.32,0.00029863,2]
[315025090,1708733486549,-681.86,0.00029863,2]
[315025091,1708733486560,-500.0,0.00029863,2]
[315025092,1708733486571,-500.0,0.00029863,2]
[315025093,1708733486580,-698.2,0.00029863,2]
[315025094,1708733486589,-500.0,0.00029863,2]
[315025095,1708733486598,-500.0,0.00029863,2]
[315025096,1708733486607,-1024.62,0.00029863,2]
[315025097,1708733486617,-500.0,0.00029863,2]
[315025098,1708733486626,-605.97,0.00029863,2]
[315025099,1708733486635,-1097.31,0.00029863,2]
[315025100,1708733486644,-289.18608388,0.00029863,2]
[315025101,1708733486654,-519.59,0.00029863,2]
[315025102,1708733486663,-1028.01,0.00029863,2]
[315025103,1708733486672,-864.96,0.00029863,2]
[315025104,1708733486682,-1895.33,0.00029863,2]
[315025105,1708733486691,-500.0,0.00029863,2]
[315025106,1708733486701,-500.0,0.00029863,2]
[315025107,1708733486712,-500.0,0.00029863,2]
[315025108,1708733486720,-1473.06,0.00029863,2]
[315025109,1708733486730,-1162.77,0.00029863,2]
[315025110,1708733486739,-500.0,0.00029863,2]
[315025111,1708733486749,-1837.48,0.00029863,2]
[315025112,1708733486758,-2853.27,0.00029863,2]
[315025113,1708733486768,-572.85,0.00029863,2]
[315025114,1708733486778,-562.36,0.00029863,2]
[315025115,1708733486787,-2847.36,0.00029863,2]
[315025116,1708733486796,-500.0,0.00029863,2]
[315025117,1708733486805,-4048.98,0.00029863,2]
[315025118,1708733486814,-500.0,0.00029863,2]
[315025119,1708733486823,-163.61,0.00029874,2]
[315025120,1708733486833,-484915.78328574,0.0002988,2]
[315025121,1708733486842,-35619.91358617,0.000299,2]
[315025122,1708733486851,-337.94,0.00029923,2]
[315025123,1708733486860,-783.35751895,0.00029999,2]
[315025124,1708733486869,-788.04,0.00029999,2]
[315025125,1708733486879,-325.71117419,0.00029999,2]
[315025126,1708733486889,-500.0,0.00029999,2]
[315025127,1708733486898,-500.0,0.00029999,2]
[315025128,1708733486907,-544.25,0.00029999,2]
[315025129,1708733486917,-952.3,0.00029999,2]
[315025130,1708733486926,-537.7,0.00029999,2]
[315025131,1708733486937,-529.43,0.00029999,2]
[315025132,1708733486947,-500.0,0.00029999,2]
[315025133,1708733486957,-532.79,0.00029999,2]
[315025134,1708733486968,-861.64,0.00029999,2]
[315025135,1708733486978,-500.0,0.00029999,2]
[315025136,1708733486988,-5236.95,0.00029999,2]
[315025137,1708733486997,-974.61,0.00029999,2]
[315025138,1708733487006,-905.57,0.00029999,2]
[315025139,1708733487016,-590.48,0.00029999,2]
[315025140,1708733487025,-808.71,0.00029999,2]
[315025141,1708733487036,-513.66,0.00029999,2]
[315025142,1708733487045,-583.96,0.00029999,2]
[315025143,1708733487055,-1156.32,0.00029999,2]
[315025144,1708733487064,-681.86,0.00029999,2]
[315025145,1708733487073,-500.0,0.00029999,2]
[315025146,1708733487082,-500.0,0.00029999,2]
[315025147,1708733487091,-698.2,0.00029999,2]
[315025148,1708733487100,-500.0,0.00029999,2]
[315025149,1708733487109,-279.16883815,0.00029999,2]
[315025150,1708733487118,-1024.62,0.00029999,2]
[315025151,1708733487127,-500.0,0.00029999,2]
[315025152,1708733487136,-605.97,0.00029999,2]
[315025153,1708733487145,-1097.31,0.00029999,2]
[315025154,1708733487154,-1028.01,0.00029999,2]
[315025155,1708733487163,-864.96,0.00029999,2]
[315025156,1708733487172,-1895.33,0.00029999,2]
[315025157,1708733487182,-500.0,0.00029999,2]
[315025158,1708733487191,-500.0,0.00029999,2]
[315025159,1708733487199,-1473.06,0.00029999,2]
[315025160,1708733487210,-1162.77,0.00029999,2]
[315025161,1708733487221,-500.0,0.00029999,2]
[315025162,1708733487232,-1837.48,0.00029999,2]
[315025163,1708733487241,-2853.27,0.00029999,2]
[315025164,1708733487251,-572.85,0.00029999,2]
[315025165,1708733487260,-562.36,0.00029999,2]
[315025166,1708733487270,-2847.36,0.00029999,2]
[315025167,1708733487279,-500.0,0.00029999,2]
[315025168,1708733487288,-4048.98,0.00029999,2]
[315025169,1708733487297,-500.0,0.00029999,2]
[315025170,1708733487307,-155.0,0.0003,4]
[315025171,1708733487408,-27669.47653084,0.0003,4]
[315025172,1708733487425,-14103.83484867,0.0003,2]
[315025173,1708733487434,-345.06249146,0.0003,2]
[315025174,1708733487443,-314.25366625,0.0003,2]
[315025175,1708733487450,-15223.65608156,0.0003,2]
[315025176,1708733487460,-570.39044227,0.0003,4]
[315025177,1708733487469,-1000.0,0.0003,2]
[315025178,1708733487479,-337.94,0.00030075,2]
[315025179,1708733487488,-167.0,0.00030081,2]
[315025180,1708733487497,-1122.56262266,0.000301,2]
[315025181,1708733487506,-1630.0,0.000301,2]
[315025182,1708733487515,-878.89,0.00030109,2]
[315025183,1708733487525,-788.04,0.00030136,2]
[315025184,1708733487534,-571.54169732,0.00030136,2]
[315025185,1708733487543,-500.0,0.00030136,2]
[315025186,1708733487552,-544.25,0.00030136,2]
[315025187,1708733487561,-952.3,0.00030136,2]
[315025188,1708733487570,-537.7,0.00030136,2]
[315025189,1708733487579,-529.43,0.00030136,2]
[315025190,1708733487589,-500.0,0.00030136,2]
[315025191,1708733487599,-532.79,0.00030136,2]
[315025192,1708733487609,-861.64,0.00030136,2]
[315025193,1708733487620,-500.0,0.00030136,2]
[315025194,1708733487632,-5236.95,0.00030136,2]
[315025195,1708733487642,-974.61,0.00030136,2]
[315025196,1708733487652,-905.57,0.00030136,2]
[315025197,1708733487662,-808.71,0.00030136,2]
[315025198,1708733487672,-513.66,0.00030136,2]
[315025199,1708733487681,-583.96,0.00030136,2]
[315025200,1708733487691,-1156.32,0.00030136,2]
[315025201,1708733487700,-681.86,0.00030136,2]
[315025202,1708733487711,-500.0,0.00030136,2]
[315025203,1708733487720,-500.0,0.00030136,2]
[315025204,1708733487729,-698.2,0.00030136,2]
[315025205,1708733487738,-431.07,0.00030136,2]
[315025206,1708733487748,-1024.62,0.00030136,2]
[315025207,1708733487758,-605.97,0.00030136,2]
[315025208,1708733487767,-1097.31,0.00030136,2]
[315025209,1708733487776,-1028.01,0.00030136,2]
[315025210,1708733487786,-864.96,0.00030136,2]
[315025211,1708733487795,-1895.33,0.00030136,2]
[315025212,1708733487805,-236.53,0.00030136,2]
[315025213,1708733487814,-497.18,0.00030136,2]
[315025214,1708733487825,-1473.06,0.00030136,2]
[315025215,1708733487834,-1162.77,0.00030136,2]
[315025216,1708733487843,-589.52256593,0.00030136,2]
[315025217,1708733487853,-1837.48,0.00030136,2]
[315025218,1708733487864,-2853.27,0.00030136,2]
[315025219,1708733487874,-572.85,0.00030136,2]
[315025220,1708733487883,-562.36,0.00030136,2]
[315025221,1708733487893,-2847.36,0.00030136,2]
[315025222,1708733487904,-500.0,0.00030136,2]
[315025223,1708733487915,-4048.98,0.00030136,2]
[315025224,1708733487926,-500.0,0.00030136,2]
[315025225,1708733487938,-151.51,0.00030137,2]
[315025226,1708733487949,-155.0,0.00030137,2]
[315025227,1708733487960,-247.0,0.00030211,2]
[315025228,1708733487970,-177.74,0.00030226,2]
[315025229,1708733487979,-337.94,0.00030226,2]
[315025230,1708733487988,-788.04,0.00030273,2]
[315025231,1708733487997,-500.0,0.00030273,2]
[315025232,1708733488006,-544.25,0.00030273,2]
[315025233,1708733488015,-952.3,0.00030273,2]
[315025234,1708733488025,-537.7,0.00030273,2]
[315025235,1708733488034,-529.43,0.00030273,2]
[315025236,1708733488043,-500.0,0.00030273,2]
[315025237,1708733488052,-532.79,0.00030273,2]
[315025238,1708733488062,-861.64,0.00030273,2]
[315025239,1708733488072,-500.0,0.00030273,2]
[315025240,1708733488082,-5236.95,0.00030273,2]
[315025241,1708733488091,-974.61,0.00030273,2]
[315025242,1708733488101,-905.57,0.00030273,2]
[315025243,1708733488111,-808.71,0.00030273,2]
[315025244,1708733488120,-513.66,0.00030273,2]
[315025245,1708733488131,-583.96,0.00030273,2]
[315025246,1708733488142,-1156.32,0.00030273,2]
[315025247,1708733488151,-681.86,0.00030273,2]
[315025248,1708733488173,-500.0,0.00030273,2]
[315025249,1708733488189,-500.0,0.00030273,2]
[315025250,1708733488205,-698.2,0.00030273,2]
[315025251,1708733488227,-1024.62,0.00030273,2]
[315025252,1708733488243,-605.97,0.00030273,2]
[315025253,1708733488259,-1097.31,0.00030273,2]
[315025254,1708733488276,-1028.01,0.00030273,2]
[315025255,1708733488293,-864.96,0.00030273,2]
[315025256,1708733488311,-1895.33,0.00030273,2]
[315025257,1708733488330,-1473.06,0.00030273,2]
[315025258,1708733488349,-1162.77,0.00030273,2]
[315025259,1708733488365,-1837.48,0.00030273,2]
[315025260,1708733488377,-2853.27,0.00030273,2]